bitfinex-derivatives/quotes_BTCF0:USTF0_20250119
["timestamp","ask_amount","ask_price","bid_price","bid_amount"]
[1737299874300,0.14936283,104670.0,104660.0,0.00764]
[1737299875301,0.14936283,104670.0,104660.0,0.36844]
[1737299876000,0.14936283,104670.0,104660.0,0.00764]
[1737299876596,0.14936283,104670.0,104660.0,0.36844]
[1737299876902,0.5977237,104670.0,104660.0,0.00764]
[1737299877502,0.51016283,104670.0,104660.0,0.00764]
[1737299878200,0.06180196,104670.0,104660.0,0.01063204]
[1737299878404,0.06180196,104670.0,104660.0,0.37143204]
[1737299879502,0.06180196,104670.0,104660.0,0.01063166]
[1737299879706,0.06180196,104670.0,104660.0,0.50683453]
[1737299879900,0.06180196,104670.0,104660.0,0.50683458]
[1737299880601,0.047834,104680.0,104670.0,0.047835]
[1737299880793,0.047834,104680.0,104670.0,0.40328758]
[1737299881100,0.17457481,104700.0,104680.0,0.047829]
[1737299881408,0.17457481,104700.0,104680.0,0.49918123]
[1737299881698,0.17457481,104700.0,104690.0,0.047829]
[1737299881904,0.17457481,104700.0,104690.0,0.05082036]
[1737299882899,0.06146058,104700.0,104690.0,0.05082036]
[1737299883098,0.06146058,104700.0,104690.0,0.00299136]
[1737299883298,0.14902145,104700.0,104690.0,0.00299136]
[1737299884705,0.14902045,104700.0,104690.0,0.00299088]
[1737299884906,0.50982045,104700.0,104690.0,0.00299088]
[1737299885202,0.14902045,104700.0,104690.0,0.00299088]
[1737299885793,0.50982045,104700.0,104690.0,0.00299088]
[1737299886193,0.59738132,104700.0,104690.0,0.00299088]
[1737299886402,0.50982045,104700.0,104680.0,0.17117564]
[1737299886606,0.50982045,104700.0,104680.0,0.53496656]
[1737299886607,0.13538987,104690.0,104680.0,0.53496656]
[1737299887106,0.49618987,104690.0,104680.0,0.17416667]
[1737299887507,0.58008987,104690.0,104680.0,0.17416667]
[1737299887706,0.58008987,104690.0,104680.0,0.18180667]
[1737299887910,0.66448987,104690.0,104680.0,0.18180667]
[1737299888105,0.75088987,104690.0,104680.0,0.18180667]
[1737299888407,0.75088987,104690.0,104680.0,0.18180684]
[1737299888908,0.75088987,104690.0,104680.0,0.0106312]
[1737299889205,0.75088987,104690.0,104680.0,0.0182712]
[1737299890023,0.8640041,104690.0,104680.0,0.0182712]
[1737299890397,0.77644323,104690.0,104680.0,0.0182712]
[1737299890611,0.8640041,104690.0,104680.0,0.0182712]
[1737299892501,0.8640041,104690.0,104680.0,0.02305761]
[1737299893807,0.60564323,104690.0,104680.0,0.02305761]
[1737299894007,0.6932041,104690.0,104680.0,0.02305761]
[1737299894304,0.6932041,104690.0,104680.0,0.02305754]
[1737299894505,0.58008987,104690.0,104680.0,0.02305754]
[1737299895712,0.6932041,104690.0,104680.0,0.02305754]
[1737299895907,0.6932041,104690.0,104680.0,0.04693754]
[1737299896518,0.6932041,104690.0,104680.0,0.04215136]
[1737299898416,0.6932041,104690.0,104680.0,3.6e-07]
[1737299899817,0.83396919,104690.0,104680.0,3.6e-07]
[1737299901206,0.72085496,104690.0,104680.0,3.6e-07]
[1737299903725,0.83407375,104690.0,104680.0,3.6e-07]
[1737299906714,0.047838,104670.0,104660.0,0.40019195]
[1737299906920,0.49619887,104670.0,104660.0,0.40019195]
[1737299908008,0.49619887,104670.0,104660.0,0.42407195]
[1737299908611,0.49619887,104670.0,104660.0,0.19505564]
[1737299909011,0.49619887,104670.0,104660.0,0.20269564]
[1737299910121,0.51026421,104670.0,104660.0,0.20269564]
[1737299912513,0.42270334,104670.0,104660.0,0.20269564]
[1737299913324,0.51026421,104670.0,104660.0,0.20269564]
[1737299914121,0.51026421,104670.0,104660.0,0.43171195]
[1737299916716,0.59782508,104670.0,104660.0,0.43171195]
[1737299916926,0.59782508,104670.0,104660.0,0.01036895]
[1737299917130,0.59782508,104670.0,104650.0,0.22431096]
[1737299917131,0.047842,104660.0,104650.0,0.22431096]
[1737299917427,0.49620287,104660.0,104650.0,0.22431096]
[1737299917630,0.58760287,104660.0,104650.0,0.22431096]
[1737299918426,0.72836796,104660.0,104650.0,0.0881]
[1737299918619,0.18860709,104660.0,104650.0,0.0881]
[1737299919132,0.14076509,104660.0,104650.0,0.0881]
[1737299919724,0.11321745,104660.0,104650.0,0.0881]
[1737299919924,0.11321745,104660.0,104650.0,0.53646087]
[1737299920125,0.15483043,104670.0,104650.0,0.58430787]
[1737299920326,0.15483043,104670.0,104660.0,0.4537]
[1737299920625,0.6031913,104670.0,104660.0,0.0929]
[1737299920823,0.2423913,104670.0,104660.0,0.0929]
[1737299921026,0.6510293,104670.0,104660.0,0.0929]
[1737299921328,0.047842,104660.0,104650.0,0.0881]
[1737299921626,0.13540287,104660.0,104650.0,0.1749]
[1737299921821,0.49620287,104660.0,104650.0,0.18254]
[1737299922016,0.49620287,104660.0,104650.0,0.09574]
[1737299922831,0.58980287,104660.0,104650.0,0.09574]
[1737299923632,0.73056796,104660.0,104650.0,0.09574]
[1737299924135,0.18860709,104660.0,104650.0,0.09574]
[1737299924528,0.14076509,104660.0,104650.0,0.18330087]
[1737299925047,0.14076509,104660.0,104650.0,0.59194787]
[1737299926234,0.6510293,104670.0,104650.0,0.151227]
[1737299926434,0.2902293,104670.0,104650.0,0.23878787]
[1737299926627,0.2902293,104670.0,104660.0,0.0857]
[1737299926628,0.20266843,104670.0,104660.0,0.0857]
[1737299926822,0.20266843,104670.0,104660.0,0.1719]
[1737299927026,0.56346843,104670.0,104660.0,0.1719]
[1737299927230,0.20266843,104670.0,104660.0,0.5327]
[1737299927532,0.06190334,104670.0,104660.0,0.5327]
[1737299927929,0.06190334,104670.0,104660.0,0.1719]
[1737299928929,0.42270334,104670.0,104660.0,0.1719]
[1737299929430,0.56346843,104670.0,104660.0,0.1719]
[1737299929836,0.20266843,104670.0,104660.0,0.1719]
[1737299930037,0.56346843,104670.0,104660.0,0.1719]
[1737299930334,0.6510293,104670.0,104660.0,0.1719]
[1737299930634,0.56346843,104670.0,104660.0,0.1719]
[1737299930832,0.06190334,104670.0,104660.0,0.1719]
[1737299931035,0.42270334,104670.0,104660.0,0.1719]
[1737299931236,0.06190334,104670.0,104660.0,0.1719]
[1737299932125,0.01406534,104670.0,104660.0,0.62026087]
[1737299932437,0.19607207,104700.0,104660.0,0.70782174]
[1737299932731,0.19607207,104700.0,104690.0,0.44836087]
[1737299933234,0.19607207,104700.0,104690.0,0.71756087]
[1737299933632,0.20983394,104700.0,104690.0,0.76538987]
[1737299933828,0.01376187,104700.0,104690.0,0.76538987]
[1737299934032,0.41005425,104710.0,104690.0,0.76538987]
[1737299934033,0.04925425,104710.0,104690.0,0.76538987]
[1737299934335,0.047824,104700.0,104690.0,0.63]
[1737299934536,0.047824,104700.0,104690.0,0.2692]
[1737299935048,0.408624,104700.0,104690.0,0.2692]
[1737299936440,0.047824,104700.0,104690.0,0.71756087]
[1737299937037,0.047824,104700.0,104690.0,0.35676087]
[1737299937629,0.047824,104700.0,104690.0,0.71756087]
[1737299937927,0.49618487,104700.0,104690.0,0.1816]
[1737299938132,0.49618487,104700.0,104690.0,0.09269092]
[1737299939029,0.13538487,104700.0,104690.0,0.09269092]
[1737299939240,0.047824,104700.0,104690.0,0.09269092]
[1737299940138,0.047824,104700.0,104690.0,0.0897]
[1737299940339,0.047824,104700.0,104690.0,0.53806087]
[1737299940534,0.047824,104700.0,104690.0,0.4505]
[1737299941341,0.047824,104700.0,104690.0,0.4534907]
[1737299941637,0.047824,104700.0,104690.0,0.4505]
[1737299941841,0.047824,104700.0,104690.0,0.4534907]
[1737299942537,0.047824,104700.0,104690.0,0.0926907]
[1737299942930,0.047824,104700.0,104690.0,0.0029907]
[1737299942931,0.58374574,104700.0,104690.0,0.0029907]
[1737299943336,0.49618487,104700.0,104670.0,0.047837]
[1737299943636,0.49618487,104700.0,104660.0,0.582042]
[1737299943637,0.040198,104670.0,104660.0,0.582042]
[1737299943843,0.040198,104670.0,104660.0,0.670642]
[1737299944545,0.48855887,104670.0,104660.0,0.1777]
[1737299944935,0.48855887,104670.0,104660.0,0.0886]
[1737299945135,0.047842,104660.0,104650.0,0.00764]
[1737299945442,0.047842,104660.0,104650.0,0.09624]
[1737299945743,0.047842,104660.0,104650.0,0.18380087]
[1737299945940,0.047842,104660.0,104650.0,0.23164787]
[1737299946134,0.3608,104670.0,104650.0,0.54460087]
[1737299946135,0.047838,104670.0,104650.0,0.54460087]
[1737299946336,0.047834,104680.0,104660.0,0.49619987]
[1737299947130,0.047834,104680.0,104670.0,0.13539887]
[1737299947336,0.37440355,104690.0,104680.0,0.047833]
[1737299947542,0.37440355,104690.0,104680.0,0.311333]
[1737299947543,0.42223255,104690.0,104680.0,0.311333]
[1737299947838,0.06143255,104690.0,104680.0,0.311333]
[1737299948044,0.06143255,104690.0,104680.0,0.2635]
[1737299948838,0.06143255,104690.0,104680.0,0.672133]
[1737299949238,0.01360355,104690.0,104680.0,0.76268493]
[1737299949443,0.047825,104700.0,104680.0,0.76268493]
[1737299950148,0.5415,104710.0,104690.0,0.44836087]
[1737299950449,0.14012,104710.0,104690.0,0.45135193]
[1737299950641,0.06180492,104710.0,104700.0,0.047824]
[1737299950840,0.06180492,104710.0,104700.0,0.05081489]
[1737299951145,0.06180492,104710.0,104700.0,0.41161489]
[1737299951350,0.14936579,104710.0,104700.0,0.3608]
[1737299951743,0.06180492,104710.0,104700.0,0.3608]
[1737299952248,0.06180492,104710.0,104690.0,0.408628]
[1737299952550,0.14936579,104710.0,104690.0,0.408628]
[1737299952848,0.047824,104700.0,104690.0,0.408628]
[1737299953045,0.13538487,104700.0,104690.0,0.3608]
[1737299953249,0.08756087,104700.0,104680.0,0.672132]
[1737299953450,0.58248687,104700.0,104680.0,0.672132]
[1737299953644,0.22168687,104700.0,104680.0,0.311332]
[1737299954040,0.134126,104700.0,104680.0,0.672132]
[1737299954240,0.134126,104700.0,104680.0,0.75969287]
[1737299954441,0.047826,104700.0,104690.0,0.13538987]
[1737299954746,0.06180492,104710.0,104690.0,0.49618987]
[1737299955046,0.06180492,104710.0,104700.0,0.408624]
[1737299955245,0.01398492,104710.0,104700.0,0.408624]
[1737299955452,0.86119007,104720.0,104700.0,0.41161468]
[1737299955636,0.7736292,104720.0,104700.0,0.41161468]
[1737299955838,0.69197457,104720.0,104700.0,0.05081468]
[1737299956041,0.69197457,104720.0,104700.0,0.41161468]
[1737299956351,0.61804807,104720.0,104700.0,0.41161468]
[1737299956552,0.61804807,104720.0,104700.0,0.49917555]
[1737299956853,0.61804807,104720.0,104700.0,0.41161445]
[1737299957244,0.61804807,104720.0,104700.0,0.05081445]
[1737299957746,0.61804807,104720.0,104700.0,0.41161445]
[1737299958240,0.61804807,104720.0,104700.0,0.41161444]
[1737299958648,0.61804807,104720.0,104700.0,0.49917531]
[1737299959246,0.52574807,104720.0,104700.0,0.49917531]
[1737299959949,0.52574807,104720.0,104710.0,0.04782]
[1737299960153,0.52574807,104720.0,104710.0,0.05081044]
[1737299960447,0.61330894,104720.0,104710.0,0.00299044]
[1737299961338,0.52574807,104720.0,104700.0,0.408623]
[1737299962851,0.52574807,104720.0,104700.0,0.499423]
[1737299963040,0.52574807,104720.0,104700.0,0.138623]
[1737299963443,0.47793107,104720.0,104700.0,0.14161345]
[1737299963751,0.13538087,104710.0,104700.0,0.05081345]
[1737299963945,0.04782,104710.0,104700.0,0.05081345]
[1737299964447,0.49618087,104710.0,104700.0,0.00299045]
[1737299964649,0.67258087,104710.0,104700.0,0.00299045]
[1737299964953,0.67258087,104710.0,104680.0,0.42176954]
[1737299965145,0.49618987,104690.0,104680.0,0.28862846]
[1737299965645,0.58598987,104690.0,104680.0,0.28862846]
[1737299965954,0.498429,104690.0,104680.0,0.28862846]
[1737299966145,0.047833,104680.0,104670.0,0.13539787]
[1737299966339,0.047833,104680.0,104670.0,0.047837]
[1737299966849,0.58598987,104690.0,104660.0,0.62466087]
[1737299967155,0.047838,104670.0,104660.0,0.67250187]
[1737299967347,0.047838,104670.0,104660.0,0.584941]
[1737299967551,0.047838,104670.0,104660.0,0.67250187]
[1737299970053,0.0841,104680.0,104660.0,0.67250187]
[1737299970253,0.131934,104680.0,104670.0,0.08756087]
[1737299970446,0.131934,104680.0,104660.0,0.67250187]
[1737299970642,0.131934,104680.0,104670.0,0.08756087]
[1737299970847,0.131934,104680.0,104660.0,0.67250187]
[1737299971653,0.047838,104670.0,104660.0,0.31170187]
[1737299973744,0.047838,104670.0,104660.0,0.224141]
[1737299973949,0.047842,104660.0,104650.0,0.49977905]
[1737299974151,0.047838,104670.0,104660.0,0.047842]
[1737299974352,0.047838,104670.0,104660.0,0.13540287]
[1737299974548,0.047838,104670.0,104660.0,0.49620287]
[1737299974950,0.047838,104670.0,104660.0,0.13540287]
[1737299975456,0.047838,104670.0,104660.0,0.49620287]
[1737299975651,0.047838,104670.0,104660.0,0.408642]
[1737299976261,0.047838,104670.0,104660.0,0.49620287]
[1737299976555,0.72731634,104690.0,104680.0,0.047833]
[1737299976556,0.59192647,104690.0,104680.0,0.047833]
[1737299976751,0.59192647,104690.0,104680.0,0.49619387]
[1737299976752,0.14132647,104690.0,104680.0,0.49619387]
[1737299977053,0.14132647,104690.0,104680.0,0.58988511]
[1737299977765,0.20214458,104700.0,104690.0,0.047829]
[1737299977959,0.28970545,104700.0,104690.0,0.05082024]
[1737299978253,0.65050545,104700.0,104690.0,0.00299124]
[1737299978454,0.20214458,104700.0,104690.0,0.05082024]
[1737299978852,0.06081811,104700.0,104690.0,0.05082024]
[1737299979059,0.42161811,104700.0,104690.0,0.05082024]
[1737299979563,0.047829,104690.0,104680.0,0.047832]
[1737299979860,0.047829,104690.0,104680.0,0.05082297]
[1737299980256,0.46135398,104700.0,104680.0,0.05082297]
[1737299980457,0.06081811,104700.0,104690.0,0.047829]
[1737299980759,0.3608,104710.0,104700.0,0.047824]
[1737299980955,0.3608,104710.0,104700.0,0.31308487]
[1737299981152,0.14132647,104710.0,104700.0,0.31308487]
[1737299981855,0.15397631,104710.0,104700.0,0.67388487]
[1737299982656,0.01264984,104710.0,104700.0,0.68451513]
[1737299982859,0.0647127,104720.0,104710.0,0.04782]
[1737299983064,0.0647127,104720.0,104710.0,0.05081026]
[1737299983659,0.15227357,104720.0,104710.0,0.04782]
[1737299984369,0.0647127,104720.0,104710.0,0.04782]
[1737299984667,0.07770863,104720.0,104710.0,0.04782]
[1737299985563,0.02989263,104720.0,104710.0,0.41161027]
[1737299985769,0.00143325,104720.0,104710.0,0.49917114]
[1737299986258,0.11279752,104730.0,104720.0,0.047815]
[1737299986459,0.11279752,104730.0,104720.0,0.58656593]
[1737299987465,0.11279752,104730.0,104720.0,0.58656543]
[1737299987668,0.33329952,104750.0,104740.0,0.047806]
[1737299987961,0.33329952,104750.0,104740.0,0.05079556]
[1737299988163,0.34638975,104750.0,104740.0,0.05079556]
[1737299989056,0.23359223,104750.0,104740.0,0.05079556]
[1737299989458,0.23359223,104750.0,104740.0,0.05079547]
[1737299989661,0.23359223,104750.0,104740.0,0.05557863]
[1737299989868,0.23359223,104750.0,104740.0,0.00777263]
[1737299989869,0.3211531,104750.0,104740.0,0.00777263]
[1737299990264,0.23359223,104750.0,104740.0,0.00777263]
[1737299990574,0.23359223,104750.0,104740.0,0.1431395]
[1737299990757,0.11423032,104760.0,104750.0,0.047801]
[1737299990964,0.11423032,104760.0,104750.0,0.5039345]
[1737299991163,0.1268709,104760.0,104750.0,0.5039345]
[1737299991467,0.1268709,104760.0,104750.0,0.7754345]
[1737299991665,0.14132647,104770.0,104750.0,0.86299537]
[1737299991868,0.14132647,104770.0,104760.0,0.49615787]
[1737299992064,0.14132647,104770.0,104760.0,0.5039305]
[1737299992577,0.047792,104770.0,104760.0,0.05556963]
[1737299993068,0.26786087,104780.0,104760.0,0.41636963]
[1737299993372,0.228088,104780.0,104770.0,0.047792]
[1737299993575,0.24118344,104780.0,104770.0,0.13834156]
[1737299993766,0.24118344,104780.0,104770.0,0.05078069]
[1737299994071,0.24118344,104780.0,104770.0,0.13834156]
[1737299994262,0.24118344,104780.0,104770.0,0.05078069]
[1737299995268,0.24118344,104780.0,104770.0,0.00298866]
[1737299995765,0.24118344,104780.0,104770.0,0.0029888]
[1737299996072,0.60198344,104780.0,104770.0,0.0029888]
[1737299996266,0.24118344,104780.0,104770.0,0.0029888]
[1737299997274,0.24118344,104780.0,104770.0,0.00298868]
[1737299997475,0.60198344,104780.0,104770.0,0.00298868]
[1737299998770,0.60198344,104780.0,104760.0,0.047796]
[1737299999078,0.047792,104770.0,104760.0,0.05556694]
[1737299999377,0.408592,104770.0,104760.0,0.00298882]
[1737299999964,0.047797,104760.0,104750.0,0.22446187]
[1737300000171,0.047797,104760.0,104750.0,0.05258341]
[1737300000977,0.047797,104760.0,104750.0,0.00478241]
[1737300001161,0.49615787,104760.0,104750.0,0.00478241]
[1737300001367,0.047804,104750.0,104730.0,0.499309]
[1737300001568,0.225804,104750.0,104730.0,0.58686987]
[1737300001874,0.225804,104750.0,104740.0,0.08756087]
[1737300002078,0.408598,104760.0,104740.0,0.13536687]
[1737300002278,0.408598,104760.0,104750.0,0.08756087]
[1737300002475,0.408598,104760.0,104750.0,0.13536187]
[1737300002672,0.408598,104760.0,104750.0,0.047801]
[1737300002970,0.047801,104750.0,104740.0,0.22656587]
[1737300003277,0.047801,104750.0,104730.0,0.58687087]
[1737300003577,0.047806,104740.0,104730.0,0.04781]
[1737300003781,0.047806,104740.0,104730.0,0.13537087]
[1737300003973,0.408602,104750.0,104740.0,0.047806]
[1737300004276,0.408602,104750.0,104740.0,0.13536687]
[1737300005175,0.408602,104750.0,104730.0,0.3608]
[1737300005176,0.047806,104740.0,104730.0,0.49616987]
[1737300005480,0.4217185,104750.0,104730.0,0.44836087]
[1737300005672,0.4217185,104750.0,104740.0,0.13536687]
[1737300005874,0.4217185,104750.0,104740.0,0.08756087]
[1737300007285,0.3739155,104750.0,104730.0,0.13537087]
[1737300007476,0.047806,104740.0,104730.0,0.13537087]
[1737300007866,0.047806,104740.0,104730.0,0.40861]
[1737300008072,0.047806,104740.0,104730.0,0.04781]
[1737300008270,0.141206,104740.0,104730.0,0.13537087]
[1737300008879,0.141206,104740.0,104730.0,0.04781]
[1737300009182,0.233506,104740.0,104730.0,0.13537087]
[1737300010381,0.233506,104740.0,104730.0,0.04781]
[1737300010584,0.233506,104740.0,104720.0,0.32117487]
[1737300011982,0.233506,104740.0,104720.0,0.32416458]
[1737300012172,0.233506,104740.0,104720.0,0.27635058]
[1737300012374,0.233506,104740.0,104730.0,0.13537087]
[1737300012677,0.047806,104740.0,104730.0,0.13836058]
[1737300012878,0.3739155,104750.0,104730.0,0.09533401]
[1737300013080,0.4695265,104750.0,104740.0,0.08756087]
[1737300013382,0.4217205,104750.0,104740.0,0.00777314]
[1737300013779,0.4217205,104750.0,104740.0,0.00298971]
[1737300014487,0.4217205,104750.0,104740.0,0.13835658]
[1737300015083,0.4217205,104750.0,104740.0,0.09055058]
[1737300015384,0.4217205,104750.0,104740.0,0.00298971]
[1737300016382,0.4217205,104750.0,104740.0,0.01061971]
[1737300016578,0.4217205,104750.0,104740.0,0.14598658]
[1737300016781,0.56304697,104750.0,104740.0,0.14598658]
[1737300017283,0.56304697,104750.0,104740.0,0.01061971]
[1737300017787,0.56304697,104750.0,104740.0,0.01061957]
[1737300018082,0.4217205,104750.0,104740.0,0.01061957]
[1737300018387,0.4217205,104750.0,104740.0,0.14598644]
[1737300019283,0.85084197,104760.0,104740.0,0.50678644]
[1737300019483,0.89863997,104760.0,104750.0,0.22516187]
[1737300019790,0.89863997,104760.0,104750.0,0.23293427]
[1737300019978,0.35833997,104760.0,104750.0,0.23293427]
[1737300020277,0.35833997,104760.0,104750.0,0.32003427]
[1737300020678,0.18912447,104760.0,104750.0,0.32003427]
[1737300020888,0.14132647,104760.0,104750.0,0.68083427]
[1737300021085,0.5778085,104770.0,104760.0,0.047797]
[1737300021086,0.1692155,104770.0,104760.0,0.047797]
[1737300021288,0.1692155,104770.0,104760.0,0.59149114]
[1737300021593,0.18246038,104780.0,104770.0,0.047792]
[1737300021889,0.18246038,104780.0,104770.0,0.59582527]
[1737300022980,0.01324488,104780.0,104770.0,0.59582527]
[1737300023175,0.41001542,104790.0,104770.0,0.54803327]
[1737300023381,0.41001542,104790.0,104780.0,0.13534887]
[1737300023587,0.41001542,104790.0,104780.0,0.0555604]
[1737300023789,0.41001542,104790.0,104780.0,0.0077724]
[1737300024183,0.49757629,104790.0,104780.0,0.0077724]
[1737300024881,0.41001542,104790.0,104780.0,0.00298957]
[1737300025388,0.4228947,104790.0,104780.0,0.00298957]
[1737300025881,0.4228947,104790.0,104780.0,0.0077712]
[1737300026089,0.4228947,104790.0,104780.0,0.05555312]
[1737300026284,0.0620947,104790.0,104780.0,0.14311399]
[1737300027490,0.0620947,104790.0,104780.0,0.14311353]
[1737300028489,0.0143117,104790.0,104780.0,0.50391353]
[1737300028677,0.0143117,104790.0,104780.0,0.68591353]
[1737300028882,0.00143242,104790.0,104780.0,0.77411353]
[1737300029488,0.00143242,104790.0,104780.0,0.77411236]
[1737300031789,0.04921042,104790.0,104780.0,0.05555149]
[1737300031988,0.41001042,104790.0,104780.0,0.00776849]
[1737300032179,0.32001042,104790.0,104780.0,0.00776849]
[1737300032385,0.32001042,104790.0,104780.0,0.14311236]
[1737300033496,0.32001042,104790.0,104780.0,0.14311335]
[1737300033701,0.76837129,104790.0,104780.0,0.00776948]
[1737300033882,0.76837129,104790.0,104780.0,0.00777021]
[1737300034591,0.68081042,104790.0,104780.0,0.00777021]
[1737300034896,0.32001042,104790.0,104780.0,0.00777021]
[1737300035499,0.68081042,104790.0,104780.0,0.00777021]
[1737300036993,0.68081042,104790.0,104780.0,0.09533108]
[1737300037187,0.32001042,104790.0,104780.0,0.09533108]
[1737300037793,0.68081042,104790.0,104780.0,0.00777021]
[1737300037989,0.76837129,104790.0,104780.0,0.00777021]
[1737300038295,0.76837129,104790.0,104750.0,0.00143183]
[1737300038296,0.047792,104760.0,104750.0,0.00143183]
[1737300038493,0.49615287,104760.0,104750.0,0.00143183]
[1737300038685,0.76565287,104760.0,104750.0,0.00143183]
[1737300038887,0.047797,104750.0,104740.0,0.51430017]
[1737300039090,0.047801,104740.0,104730.0,0.49277357]
[1737300039294,0.047801,104740.0,104730.0,0.45134173]
[1737300039295,0.49616187,104740.0,104730.0,0.45134173]
[1737300039693,0.047806,104730.0,104720.0,0.29656658]
[1737300040000,0.047806,104730.0,104720.0,0.29091286]
[1737300040001,0.58196687,104730.0,104720.0,0.29091286]
[1737300040189,0.58196687,104730.0,104720.0,0.29854286]
[1737300040498,0.58196687,104730.0,104720.0,0.01526]
[1737300041493,0.58196687,104730.0,104710.0,0.16847492]
[1737300041494,0.66952774,104730.0,104710.0,0.16847492]
[1737300041696,0.49617087,104720.0,104710.0,0.16847492]
[1737300041892,0.49617087,104720.0,104690.0,0.29091286]
[1737300041893,0.047819,104700.0,104690.0,0.29091286]
[1737300042089,0.047819,104700.0,104680.0,0.3608]
[1737300042090,0.047824,104690.0,104680.0,0.3608]
[1737300042605,0.047824,104690.0,104680.0,0.44836087]
[1737300043300,0.047824,104690.0,104680.0,0.3608]
[1737300044897,0.047824,104690.0,104680.0,0.49618987]
[1737300046599,0.0609469,104690.0,104680.0,0.408629]
[1737300046794,0.0609469,104690.0,104680.0,0.49618987]
[1737300047393,0.0609469,104690.0,104680.0,0.50382987]
[1737300049493,0.0131229,104690.0,104680.0,0.50382987]
[1737300049698,0.04782,104700.0,104680.0,0.50382987]
[1737300049903,0.04782,104700.0,104690.0,0.49618487]
[1737300050103,0.04782,104700.0,104690.0,0.49917554]
[1737300050601,0.06103102,104700.0,104690.0,0.49917554]
[1737300050900,0.06103102,104700.0,104690.0,0.05081467]
[1737300051105,0.50939189,104700.0,104690.0,0.00299067]
[1737300051310,0.59819189,104700.0,104690.0,0.00299067]
[1737300051501,0.51063102,104700.0,104690.0,0.00299067]
[1737300051896,0.14983102,104700.0,104690.0,0.00299067]
[1737300052099,0.23739189,104700.0,104690.0,0.00299067]
[1737300052910,0.14983102,104700.0,104690.0,0.00299067]
[1737300053097,0.14983102,104700.0,104690.0,0.00299093]
[1737300054206,0.14983102,104700.0,104680.0,0.50361524]
[1737300054505,0.047824,104690.0,104680.0,0.41605437]
[1737300055012,0.01321102,104700.0,104680.0,0.50361524]
[1737300055307,0.04782,104700.0,104690.0,0.59028487]
[1737300055502,0.04782,104700.0,104690.0,0.68847026]
[1737300056905,0.04782,104700.0,104690.0,0.68846984]
[1737300058113,0.04782,104700.0,104690.0,0.32766984]
[1737300058609,0.04782,104700.0,104690.0,0.60090897]
[1737300059604,0.04782,104700.0,104690.0,0.68846984]
[1737300059805,0.04782,104700.0,104690.0,0.24010897]
[1737300060908,0.13538087,104700.0,104690.0,0.19228497]
[1737300062005,0.04782,104700.0,104690.0,0.55308497]
[1737300062206,0.06107186,104710.0,104700.0,0.047819]
[1737300062408,0.047816,104710.0,104700.0,0.05260397]
[1737300062620,0.047816,104710.0,104700.0,0.00478497]
[1737300062809,0.13537687,104710.0,104700.0,0.00478497]
[1737300063304,0.49617687,104710.0,104700.0,0.00478497]
[1737300063504,0.67737687,104710.0,104700.0,0.00478497]
[1737300064210,0.67737687,104710.0,104700.0,0.00478541]
[1737300065215,0.047823,104700.0,104680.0,0.41605337]
[1737300065409,0.047824,104690.0,104680.0,0.41605337]
[1737300065609,0.047824,104690.0,104680.0,0.42369337]
[1737300065810,0.49618487,104690.0,104680.0,0.01528]
[1737300066213,0.49618487,104690.0,104680.0,0.01827132]
[1737300067912,0.50849226,104690.0,104680.0,0.01827132]
[1737300068519,0.81731618,104690.0,104680.0,0.01827132]
[1737300069205,0.72975531,104690.0,104680.0,0.01827132]
[1737300069410,0.81731618,104690.0,104680.0,0.01827132]
[1737300069810,0.72975531,104690.0,104680.0,0.01827132]
[1737300070134,0.06013139,104690.0,104680.0,0.15366119]
[1737300070415,0.06013139,104690.0,104680.0,0.19658]
[1737300070611,0.06013139,104690.0,104680.0,0.55738]
[1737300071218,0.06013139,104690.0,104680.0,0.56037102]
[1737300071219,0.14769226,104690.0,104680.0,0.56037102]
[1737300071517,0.14769226,104690.0,104680.0,0.19957102]
[1737300071711,0.06013139,104690.0,104680.0,0.19957102]
[1737300071912,0.14769226,104690.0,104680.0,0.01827102]
[1737300072119,0.50849226,104690.0,104680.0,0.01827102]
[1737300072309,0.67756157,104690.0,104680.0,0.01528]
[1737300072712,0.67756157,104690.0,104680.0,0.02388]
[1737300072918,0.67756157,104690.0,104670.0,0.00143282]
[1737300073121,0.44836087,104680.0,104650.0,0.76720187]
[1737300073318,0.047836,104670.0,104650.0,0.76720187]
[1737300074206,0.047836,104670.0,104650.0,0.77484187]
[1737300074920,0.11266802,104660.0,104650.0,0.77484187]
[1737300076421,0.16050602,104660.0,104650.0,0.687281]
[1737300077719,0.17264802,104660.0,104650.0,0.687281]
[1737300079323,0.17264802,104660.0,104650.0,0.597581]
[1737300081716,0.17264802,104660.0,104650.0,0.68514187]
[1737300084013,0.12481002,104660.0,104650.0,0.68514187]
[1737300084323,0.16891828,104680.0,104660.0,0.047838]
[1737300084524,0.16891828,104680.0,104670.0,0.54136087]
[1737300084719,0.18101943,104680.0,104670.0,0.54136087]
[1737300085117,0.18101943,104680.0,104670.0,0.58919387]
[1737300085926,0.58958187,104700.0,104690.0,0.047824]
[1737300086520,0.51437272,104700.0,104690.0,0.047824]
[1737300086831,0.15357272,104700.0,104690.0,0.047824]
[1737300087425,0.24113359,104700.0,104690.0,0.408624]
[1737300088531,0.047824,104690.0,104680.0,0.595928]
[1737300088734,0.13538487,104690.0,104680.0,0.499928]
[1737300089125,0.047824,104690.0,104680.0,0.499928]
[1737300089731,0.46655172,104700.0,104680.0,0.58748887]
[1737300089931,0.229091,104700.0,104690.0,0.408624]
[1737300090623,0.18127,104700.0,104690.0,0.49618487]
[1737300090823,0.18127,104700.0,104690.0,0.58838487]
[1737300091024,0.01235172,104700.0,104690.0,0.500824]
[1737300091226,0.13537987,104700.0,104690.0,0.500824]
[1737300091429,0.047819,104700.0,104690.0,0.140024]
[1737300091833,0.13537987,104700.0,104690.0,0.140024]
[1737300092234,0.13537987,104700.0,104690.0,0.047824]
[1737300093732,0.047824,104690.0,104680.0,0.139128]
[1737300095127,0.13538487,104690.0,104680.0,0.139128]
[1737300095524,0.047824,104690.0,104680.0,0.139128]
[1737300095738,0.047824,104690.0,104680.0,0.163008]
[1737300095927,0.0123848,104700.0,104680.0,0.163008]
[1737300096132,0.047822,104700.0,104690.0,0.047824]
[1737300097329,0.047824,104690.0,104680.0,0.523807]
[1737300099041,0.04782,104700.0,104690.0,0.047822]
[1737300100235,0.04782,104700.0,104690.0,0.408622]
[1737300100441,0.51128461,104710.0,104690.0,0.44836087]
[1737300100641,0.51128461,104710.0,104700.0,0.047819]
[1737300101145,0.06018461,104710.0,104700.0,0.13537987]
[1737300101343,0.01236761,104710.0,104700.0,0.58374074]
[1737300101547,0.17035134,104720.0,104710.0,0.047815]
[1737300101748,0.16891828,104730.0,104720.0,0.04781]
[1737300102045,0.19607207,104750.0,104740.0,0.047801]
[1737300102243,0.20818776,104750.0,104740.0,0.49616187]